[Event "European Online Club-ch-C 2021"]
[Site "Online"]
[Date "2021.03.27"]
[Round "1.20"]
[White "Marn, Jan"]
[Black "Schulze, Lara"]
[Result "1/2-1/2"]
[ECO "E15"]
[WhiteElo "2346"]
[BlackElo "2269"]
[Annotator "NA"]
[PlyCount "86"]
[EventDate "2021.03.27"]
[EventType "team-tourn"]
[EventCountry "NET"]
[SourceTitle "playchess.com"]
[Source "ChessBase"]
[SourceQuality "1"]
[TimeControl "900+5"]

1. d4 {[%emt 0:00:00]} Nf6 {[%emt 0:00:12]} 2. c4 {[%emt 0:00:05]} e6 {[%emt 0:00:03]} 3. Nf3 {[%emt 0:00:18]} b6 {[%emt 0:00:05]} 4. g3 {[%emt 0:00:19]} Ba6 {[%emt 0:00:05]} 5. b3 {[%emt 0:00:38]} Bb4+ {[%emt 0:00:05]} 6. Bd2 {[%emt 0:00:06]} Be7 {[%emt 0:00:04]} 7. Bg2 {[%emt 0:00:10]} O-O {[%emt 0:00:11]} 8. O-O {[%emt 0:00:06]} d5 {[%emt 0:00:03]} 9. Qc2 {[%emt 0:00:35]} c5 {[%emt 0:00:20]} 10. Nc3 {[%emt 0:01:27]} Nc6 {[%emt 0:00:30]} 11. cxd5 {[%emt 0:00:47]} Nxd4 {[%emt 0:02:20]} 12. Qb2 {[%emt 0:04:48]} Nxe2+ {[%emt 0:02:21]} 13. Nxe2 {[%emt 0:01:32]} Bxe2 {[%emt 0:00:04]} 14. dxe6 {[%emt 0:00:02]} Bxf1 {[%emt 0:01:00]} 15. exf7+ {[%emt 0:00:04]} Kh8 {[%emt 0:01:56]} 16. Rxf1 {[%emt 0:00:04]} Ne4 {[%emt 0:01:24]} 17. Bf4 {[%emt 0:00:11]} Rc8 {[%emt 0:00:39]} 18. Ne5 {[%emt 0:01:01]} Ng5 {[%emt 0:01:07]} 19. Qe2 {[%emt 0:03:05]} Nxf7 {[%emt 0:01:43]} 20. Nc6 {[%emt 0:00:04]} Rxc6 {[%emt 0:00:43]} 21. Bxc6 {[%emt 0:00:00]} Bd6 {[%emt 0:00:34]} 22. Be3 {[%emt 0:01:08]} Qf6 {[%emt 0:00:09]} 23. Rd1 {[%emt 0:00:11]} Bxg3 {[%emt 0:00:19]} 24. hxg3 {[%emt 0:00:01]} Qxc6 {[%emt 0:00:03]} 25. Qh5 {[%emt 0:00:10]} Qf6 {[%emt 0:00:13]} 26. Bf4 {[%emt 0:00:04]} h6 {[%emt 0:00:33]} 27. Rd7 {[%emt 0:00:04]} Ng5 {[%emt 0:00:09]} 28. Rxa7 {[%emt 0:00:12]} Rd8 {[%emt 0:00:06]} 29. Bxg5 {[%emt 0:00:03]} Qxg5 {[%emt 0:00:03]} 30. Qxg5 {[%emt 0:00:02]} hxg5 {[%emt 0:00:01]} 31. Rb7 {[%emt 0:00:03]} Rd6 {[%emt 0:00:10]} 32. Kg2 {[%emt 0:00:03]} g4 {[%emt 0:00:06]} 33. a3 {[%emt 0:00:05]} Kh7 {[%emt 0:00:03]} 34. b4 {[%emt 0:00:02]} cxb4 {[%emt 0:00:04]} 35. axb4 {[%emt 0:00:01]} Kg6 {[%emt 0:00:01]} 36. Re7 {[%emt 0:00:10]} Kf6 {[%emt 0:00:11]} 37. Re4 {[%emt 0:00:03]} Kf5 {[%emt 0:00:10]} 38. Rf4+ {[%emt 0:00:03]} Kg5 {[%emt 0:00:02]} 39. Kf1 {[%emt 0:00:01]} Rf6 {[%emt 0:00:11]} 40. Rd4 {[%emt 0:00:06]} Re6 {[%emt 0:00:04]} 41. Rf4 {[%emt 0:00:02]} Rf6 {[%emt 0:00:03]} 42. Rd4 {[%emt 0:00:16]} Re6 {[%emt 0:00:01]} 43. Rf4 {[%emt 0:00:01]} Rf6 {[%emt 0:00:02]} 1/2-1/2

[Event "European Online Club-ch-C 2021"]
[Site "Online"]
[Date "2021.03.27"]
[Round "2.1"]
[White "Sahin, Ozgun"]
[Black "Markoja, Boris"]
[Result "0-1"]
[ECO "C18"]
[WhiteElo "2281"]
[BlackElo "2439"]
[Annotator "NA"]
[PlyCount "50"]
[EventDate "2021.03.27"]
[EventType "team-tourn"]
[EventCountry "NET"]
[SourceTitle "playchess.com"]
[Source "ChessBase"]
[SourceQuality "1"]
[TimeControl "900+5"]

1. e4 {[%emt 0:00:00]} e6 {[%emt 0:00:04]} 2. d4 {[%emt 0:00:03]} d5 {[%emt 0:00:01]} 3. Nc3 {[%emt 0:00:02]} Bb4 {[%emt 0:00:03]} 4. e5 {[%emt 0:00:07]} c5 {[%emt 0:00:03]} 5. a3 {[%emt 0:00:02]} Bxc3+ {[%emt 0:00:01]} 6. bxc3 {[%emt 0:00:02]} Ne7 {[%emt 0:00:02]} 7. Qg4 {[%emt 0:00:02]} Qc7 {[%emt 0:00:02]} 8. Qxg7 {[%emt 0:00:03]} Rg8 {[%emt 0:00:02]} 9. Qxh7 {[%emt 0:00:02]} cxd4 {[%emt 0:00:01]} 10. Ne2 {[%emt 0:00:06]} Nbc6 {[%emt 0:00:07]} 11. cxd4 {[%emt 0:01:20]} Nxd4 {[%emt 0:00:19]} 12. Ra2 {[%emt 0:00:08]} Ndf5 {[%emt 0:04:36]} 13. f4 {[%emt 0:04:34]} Bd7 {[%emt 0:00:25]} 14. g3 {[%emt 0:01:25]} O-O-O {[%emt 0:00:40]} 15. Qh5 {[%emt 0:00:34]} Qc4 {[%emt 0:01:50]} 16. Rb2 {[%emt 0:00:18]} Qe4 {[%emt 0:00:02]} 17. Rg1 {[%emt 0:00:38]} Rh8 {[%emt 0:00:19]} 18. Qg5 {[%emt 0:00:47]} Rxh2 {[%emt 0:01:14]} 19. Rb4 {[%emt 0:01:00]} Qxc2 {[%emt 0:00:27]} 20. Bg2 {[%emt 0:01:18]} Rg8 {[%emt 0:00:41]} 21. Rb2 {[%emt 0:00:26]} Qc5 {[%emt 0:01:04]} 22. Qf6 {[%emt 0:00:28]} Rh6 {[%emt 0:00:08]} 23. Qxf7 {[%emt 0:00:14]} Be8 {[%emt 0:00:07]} 24. Qxg8 {[%emt 0:00:35]} Nxg8 {[%emt 0:00:02]} 25. g4 {[%emt 0:00:05]} Ng3 {[%emt 0:00:11]} 0-1

[Event "European Online Club-ch-C 2021"]
[Site "Online"]
[Date "2021.03.27"]
[Round "2.2"]
[White "Subelj, Jan"]
[Black "Okuyaz, Duru"]
[Result "1-0"]
[ECO "C10"]
[WhiteElo "2418"]
[BlackElo "2076"]
[Annotator "NA"]
[PlyCount "45"]
[EventDate "2021.03.27"]
[EventType "team-tourn"]
[EventCountry "NET"]
[SourceTitle "playchess.com"]
[Source "ChessBase"]
[SourceQuality "1"]
[TimeControl "900+5"]

1. e4 {[%emt 0:00:00]} e6 {[%emt 0:00:02]} 2. d4 {[%emt 0:00:03]} d5 {[%emt 0:00:01]} 3. Nd2 {[%emt 0:00:04]} dxe4 {[%emt 0:00:01]} 4. Nxe4 {[%emt 0:00:02]} Nd7 {[%emt 0:00:01]} 5. Nf3 {[%emt 0:00:23]} Ngf6 {[%emt 0:00:03]} 6. Nxf6+ {[%emt 0:00:03]} Nxf6 {[%emt 0:00:04]} 7. g3 {[%emt 0:00:05]} c5 {[%emt 0:00:15]} 8. Bg2 {[%emt 0:00:03]} cxd4 {[%emt 0:00:17]} 9. Qxd4 {[%emt 0:00:04]} Qxd4 {[%emt 0:00:16]} 10. Nxd4 {[%emt 0:00:02]} a6 {[%emt 0:00:12]} 11. O-O {[%emt 0:00:07]} Bc5 {[%emt 0:00:16]} 12. Nb3 {[%emt 0:00:09]} Ba7 {[%emt 0:00:07]} 13. Na5 {[%emt 0:00:41]} Nd5 {[%emt 0:00:22]} 14. c4 {[%emt 0:00:11]} Bb6 {[%emt 0:00:53]} 15. Bd2 {[%emt 0:00:31]} Bxa5 {[%emt 0:00:29]} 16. Bxa5 {[%emt 0:00:02]} Ne7 {[%emt 0:00:02]} 17. Rfd1 {[%emt 0:00:25]} O-O {[%emt 0:00:42]} 18. Bb4 {[%emt 0:00:04]} Ng6 {[%emt 0:01:34]} 19. Bxf8 {[%emt 0:00:04]} Kxf8 {[%emt 0:00:01]} 20. Rd8+ {[%emt 0:00:04]} Ke7 {[%emt 0:00:02]} 21. Rad1 {[%emt 0:00:01]} Nf8 {[%emt 0:00:07]} 22. c5 {[%emt 0:00:24]} e5 {[%emt 0:01:27]} 23. c6 {[%emt 0:00:21]} 1-0

[Event "European Online Club-ch-C 2021"]
[Site "Online"]
[Date "2021.03.27"]
[Round "2.3"]
[White "Yagiz, Bora"]
[Black "Skuhala, Jernej"]
[Result "0-1"]
[ECO "B16"]
[WhiteElo "1877"]
[BlackElo "2351"]
[Annotator "NA"]
[PlyCount "74"]
[EventDate "2021.03.27"]
[EventType "team-tourn"]
[EventCountry "NET"]
[SourceTitle "playchess.com"]
[Source "ChessBase"]
[SourceQuality "1"]
[TimeControl "900+5"]

1. e4 {[%emt 0:00:00]} c6 {[%emt 0:00:16]} 2. d4 {[%emt 0:00:06]} d5 {[%emt 0:00:02]} 3. Nd2 {[%emt 0:00:01]} dxe4 {[%emt 0:00:04]} 4. Nxe4 {[%emt 0:00:02]} Nf6 {[%emt 0:00:07]} 5. Nxf6+ {[%emt 0:00:17]} gxf6 {[%emt 0:00:02]} 6. Be3 {[%emt 0:00:48]} Bf5 {[%emt 0:00:04]} 7. Nf3 {[%emt 0:01:28]} Nd7 {[%emt 0:00:18]} 8. Nh4 {[%emt 0:02:56]} Bg6 {[%emt 0:00:03]} 9. Nxg6 {[%emt 0:00:12]} hxg6 {[%emt 0:00:04]} 10. Qd2 {[%emt 0:00:23]} e6 {[%emt 0:00:43]} 11. h3 {[%emt 0:03:09]} Bd6 {[%emt 0:00:10]} 12. c4 {[%emt 0:00:51]} Qc7 {[%emt 0:00:31]} 13. O-O-O {[%emt 0:00:25]} f5 {[%emt 0:02:20]} 14. g3 {[%emt 0:00:44]} O-O-O {[%emt 0:02:16]} 15. Kb1 {[%emt 0:00:27]} c5 {[%emt 0:02:40]} 16. Rc1 {[%emt 0:02:42]} e5 {[%emt 0:00:40]} 17. dxe5 {[%emt 0:01:03]} Bxe5 {[%emt 0:00:07]} 18. Bg2 {[%emt 0:00:23]} Nf6 {[%emt 0:00:24]} 19. Qc2 {[%emt 0:00:10]} Rhe8 {[%emt 0:00:13]} 20. Rcd1 {[%emt 0:00:12]} Qb6 {[%emt 0:00:07]} 21. b3 {[%emt 0:00:14]} Qa5 {[%emt 0:00:26]} 22. Bd5 {[%emt 0:00:09]} Re7 {[%emt 0:00:20]} 23. Qd2 {[%emt 0:00:06]} Qb6 {[%emt 0:00:42]} 24. f4 {[%emt 0:00:03]} Bd6 {[%emt 0:00:08]} 25. Qf2 {[%emt 0:00:04]} Rde8 {[%emt 0:00:44]} 26. Rhe1 {[%emt 0:00:01]} Ne4 {[%emt 0:00:12]} 27. Bxe4 {[%emt 0:00:06]} Rxe4 {[%emt 0:00:05]} 28. Bd2 {[%emt 0:00:03]} Bf8 {[%emt 0:00:05]} 29. Rxe4 {[%emt 0:00:07]} fxe4 {[%emt 0:00:01]} 30. Be3 {[%emt 0:00:03]} Qc6 {[%emt 0:00:17]} 31. Rd5 {[%emt 0:00:03]} b6 {[%emt 0:00:02]} 32. g4 {[%emt 0:00:06]} Bg7 {[%emt 0:00:04]} 33. f5 {[%emt 0:00:10]} Qf6 {[%emt 0:00:03]} 34. Kc1 {[%emt 0:00:08]} Qa1+ {[%emt 0:00:03]} 35. Kd2 {[%emt 0:00:02]} Qxa2+ {[%emt 0:00:09]} 36. Ke1 {[%emt 0:00:02]} Qxb3 {[%emt 0:00:14]} 37. f6 {[%emt 0:00:02]} Qc3+ {[%emt 0:00:07]} 0-1

[Event "European Online Club-ch-C 2021"]
[Site "Online"]
[Date "2021.03.27"]
[Round "2.4"]
[White "Marn, Jan"]
[Black "Deveci, Huseyin Said"]
[Result "1/2-1/2"]
[ECO "A57"]
[WhiteElo "2346"]
[BlackElo "1521"]
[Annotator "NA"]
[PlyCount "121"]
[EventDate "2021.03.27"]
[EventType "team-tourn"]
[EventCountry "NET"]
[SourceTitle "playchess.com"]
[Source "ChessBase"]
[SourceQuality "1"]
[TimeControl "900+5"]

1. d4 {[%emt 0:00:00]} Nf6 {[%emt 0:00:08]} 2. c4 {[%emt 0:00:03]} c5 {[%emt 0:00:02]} 3. d5 {[%emt 0:00:11]} b5 {[%emt 0:00:06]} 4. Qc2 {[%emt 0:00:09]} bxc4 {[%emt 0:00:05]} 5. e4 {[%emt 0:00:01]} d6 {[%emt 0:00:04]} 6. Bxc4 {[%emt 0:00:05]} Nbd7 {[%emt 0:00:15]} 7. Nf3 {[%emt 0:00:06]} g6 {[%emt 0:00:05]} 8. O-O {[%emt 0:00:08]} Bg7 {[%emt 0:00:03]} 9. Nc3 {[%emt 0:00:06]} O-O {[%emt 0:00:04]} 10. h3 {[%emt 0:00:08]} Nb6 {[%emt 0:00:22]} 11. Be2 {[%emt 0:00:04]} Bb7 {[%emt 0:00:22]} 12. a4 {[%emt 0:00:17]} a5 {[%emt 0:00:04]} 13. Bf4 {[%emt 0:00:12]} Rc8 {[%emt 0:00:35]} 14. Rad1 {[%emt 0:01:45]} Re8 {[%emt 0:01:38]} 15. Bb5 {[%emt 0:00:38]} Nfd7 {[%emt 0:00:40]} 16. Rfe1 {[%emt 0:00:24]} Rf8 {[%emt 0:00:30]} 17. Bh2 {[%emt 0:01:20]} Na8 {[%emt 0:01:39]} 18. Nd2 {[%emt 0:01:35]} Ndb6 {[%emt 0:00:25]} 19. b3 {[%emt 0:00:43]} Nc7 {[%emt 0:00:21]} 20. Nc4 {[%emt 0:00:37]} Nxb5 {[%emt 0:00:26]} 21. axb5 {[%emt 0:00:54]} Ra8 {[%emt 0:00:32]} 22. Na4 {[%emt 0:00:08]} Nc8 {[%emt 0:00:42]} 23. f4 {[%emt 0:01:27]} Na7 {[%emt 0:00:11]} 24. b6 {[%emt 0:00:18]} Nb5 {[%emt 0:00:03]} 25. Kh1 {[%emt 0:00:28]} Nd4 {[%emt 0:00:40]} 26. Qb1 {[%emt 0:00:08]} f5 {[%emt 0:00:38]} 27. Bg1 {[%emt 0:00:56]} fxe4 {[%emt 0:00:28]} 28. Bxd4 {[%emt 0:00:05]} Bxd4 {[%emt 0:00:54]} 29. Qxe4 {[%emt 0:00:02]} Bf6 {[%emt 0:00:28]} 30. Re2 {[%emt 0:02:09]} Rf7 {[%emt 0:00:32]} 31. Kh2 {[%emt 0:00:34]} Qd7 {[%emt 0:01:38]} 32. g3 {[%emt 0:00:24]} Bc8 {[%emt 0:00:23]} 33. Qg2 {[%emt 0:00:02]} Ba6 {[%emt 0:00:10]} 34. Re4 {[%emt 0:00:23]} Bb7 {[%emt 0:00:12]} 35. Re2 {[%emt 0:00:56]} Kg7 {[%emt 0:01:12]} 36. Re3 {[%emt 0:00:21]} Bd4 {[%emt 0:00:25]} 37. Re2 {[%emt 0:00:11]} Rf5 {[%emt 0:00:28]} 38. Rde1 {[%emt 0:00:02]} Re8 {[%emt 0:00:05]} 39. Ne3 {[%emt 0:00:02]} Bxe3 {[%emt 0:00:04]} 40. Rxe3 {[%emt 0:00:00]} Bxd5 {[%emt 0:00:02]} 41. Qe2 {[%emt 0:00:02]} e6 {[%emt 0:00:14]} 42. Qd2 {[%emt 0:00:09]} Bc6 {[%emt 0:00:13]} 43. R3e2 {[%emt 0:00:11]} c4 {[%emt 0:00:08]} 44. g4 {[%emt 0:00:03]} Rf7 {[%emt 0:00:10]} 45. Nc3 {[%emt 0:00:03]} cxb3 {[%emt 0:00:02]} 46. Qd4+ {[%emt 0:00:11]} Kg8 {[%emt 0:00:01]} 47. Ne4 {[%emt 0:00:03]} Bxe4 {[%emt 0:00:14]} 48. Rxe4 {[%emt 0:00:01]} a4 {[%emt 0:00:02]} 49. Qxa4 {[%emt 0:00:03]} Qxa4 {[%emt 0:00:05]} 50. Rxa4 {[%emt 0:00:00]} b2 {[%emt 0:00:09]} 51. Rb4 {[%emt 0:00:02]} Rb8 {[%emt 0:00:03]} 52. Kg3 {[%emt 0:00:04]} Rfb7 {[%emt 0:00:06]} 53. Rxb2 {[%emt 0:00:02]} Kf7 {[%emt 0:00:01]} 54. Reb1 {[%emt 0:00:02]} d5 {[%emt 0:00:03]} 55. Kf3 {[%emt 0:00:01]} Ke7 {[%emt 0:00:03]} 56. Ke3 {[%emt 0:00:03]} Kd6 {[%emt 0:00:01]} 57. Kd4 {[%emt 0:00:01]} Rf8 {[%emt 0:00:02]} 58. Rf1 {[%emt 0:00:02]} Rfb8 {[%emt 0:00:03]} 59. Rfb1 {[%emt 0:00:15]} Rf8 {[%emt 0:00:01]} 60. Rf1 {[%emt 0:00:13]} Rfb8 {[%emt 0:00:23]} 61. Rfb1 {[%emt 0:00:04]} 1/2-1/2

[Event "European Online Club-ch-C 2021"]
[Site "Online"]
[Date "2021.03.27"]
[Round "2.5"]
[White "Migot, Tangi"]
[Black "Babula, Vlastimil"]
[Result "0-1"]
[ECO "B85"]
[WhiteElo "2353"]
[BlackElo "2559"]
[Annotator "ChessBase"]
[PlyCount "70"]
[EventDate "2021.03.27"]
[EventType "team-tourn"]
[EventCountry "NET"]
[SourceTitle "playchess.com"]
[Source "ChessBase"]
[SourceQuality "1"]
[TimeControl "900+5"]

1. e4 {[%emt 0:04:14]} c5 {[%emt 0:00:08]} 2. Nf3 {[%emt 0:00:02]} e6 {[%emt 0:00:03]} 3. d4 {[%emt 0:00:08]} cxd4 {[%emt 0:00:02]} 4. Nxd4 {[%emt 0:00:00]} Nc6 {[%emt 0:00:03]} 5. Nc3 {[%emt 0:00:29]} Qc7 {[%emt 0:00:05]} 6. Be3 {[%emt 0:00:17]} a6 {[%emt 0:00:03]} 7. Be2 {[%emt 0:00:07]} Nf6 {[%emt 0:00:05]} 8. O-O {[%emt 0:00:02]} Be7 {[%emt 0:00:06]} 9. Kh1 {[%emt 0:00:03]} O-O {[%emt 0:00:11]} 10. f4 {[%emt 0:00:13]} d6 {[%emt 0:00:02]} 11. Qe1 {[%emt 0:00:04]} Nxd4 {[%emt 0:00:06]} 12. Bxd4 {[%emt 0:00:00]} b5 {[%emt 0:00:01]} 13. a3 {[%emt 0:00:02]} Nd7 {[%emt 0:00:03]} 14. Qg3 {[%emt 0:00:18]} Bf6 {[%emt 0:00:02]} 15. Bxf6 {[%emt 0:00:12]} Nxf6 {[%emt 0:00:03]} 16. Bd3 {[%emt 0:00:02]} Bb7 {[%emt 0:00:13]} 17. Rae1 {[%emt 0:00:26]} Rad8 {[%emt 0:01:04]} 18. e5 {[%emt 0:00:53]} dxe5 {[%emt 0:00:41]} 19. fxe5 {[%emt 0:00:00]} Nd7 {[%emt 0:00:28]} 20. Ne4 {[%emt 0:01:25]} Bxe4 {[%emt 0:00:09]} 21. Rxe4 {[%emt 0:02:36]} Nc5 {[%emt 0:00:18]} 22. Rg4 {[%emt 0:00:01]} g6 {[%emt 0:00:11]} 23. Rh4 {[%emt 0:00:18]} Rd5 {[%emt 0:02:18]} 24. Re1 {[%emt 0:00:26]} Rfd8 {[%emt 0:04:01]} 25. Bf1 {[%emt 0:01:44]} Rd1 {[%emt 0:00:43]} 26. c4 {[%emt 0:00:52]} f5 {[%emt 0:00:36]} 27. cxb5 {[%emt 0:00:31]} axb5 {[%emt 0:00:26]} 28. h3 {[%emt 0:00:23]} Ne4 {[%emt 0:00:17]} 29. Rhxe4 {[%emt 0:00:18]} fxe4 {[%emt 0:00:04]} 30. Kh2 {[%emt 0:00:02]} Rxe1 {[%emt 0:00:05]} 31. Qxe1 {[%emt 0:00:02]} Qxe5+ {[%emt 0:00:02]} 32. Kh1 {[%emt 0:00:01]} e3 {[%emt 0:00:05]} 33. b4 {[%emt 0:00:10]} Rd2 {[%emt 0:00:28]} 34. Be2 {[%emt 0:00:06]} Ra2 {[%emt 0:00:06]} 35. Bf1 {[%emt 0:00:43]} e2 {[%emt 0:00:11]} 0-1

[Event "European Online Club-ch-C 2021"]
[Site "Online"]
[Date "2021.03.27"]
[Round "2.6"]
[White "Grigorian, Spartak"]
[Black "Le Goff, Ronan"]
[Result "0-1"]
[ECO "D58"]
[WhiteElo "2458"]
[BlackElo "2288"]
[Annotator "ChessBase"]
[PlyCount "56"]
[EventDate "2021.03.27"]
[EventType "team-tourn"]
[EventCountry "NET"]
[SourceTitle "playchess.com"]
[Source "ChessBase"]
[SourceQuality "1"]
[TimeControl "900+5"]

1. d4 {[%emt 0:00:00]} d5 {[%emt 0:00:04]} 2. c4 {[%emt 0:00:04]} e6 {[%emt 0:00:02]} 3. Nc3 {[%emt 0:00:06]} Nf6 {[%emt 0:00:02]} 4. Bg5 {[%emt 0:00:21]} Be7 {[%emt 0:00:02]} 5. e3 {[%emt 0:00:06]} Nbd7 {[%emt 0:00:05]} 6. Nf3 {[%emt 0:01:06]} h6 {[%emt 0:00:02]} 7. Bh4 {[%emt 0:00:12]} O-O {[%emt 0:00:03]} 8. Rc1 {[%emt 0:00:23]} c5 {[%emt 0:00:04]} 9. Be2 {[%emt 0:01:18]} dxc4 {[%emt 0:01:46]} 10. Bxc4 {[%emt 0:00:05]} a6 {[%emt 0:00:02]} 11. a4 {[%emt 0:00:46]} b6 {[%emt 0:00:05]} 12. O-O {[%emt 0:00:25]} Bb7 {[%emt 0:00:43]} 13. Qe2 {[%emt 0:00:05]} Ne4 {[%emt 0:01:34]} 14. Bxe7 {[%emt 0:01:19]} Qxe7 {[%emt 0:00:23]} 15. Rfd1 {[%emt 0:00:24]} Rfd8 {[%emt 0:00:30]} 16. Nxe4 {[%emt 0:00:53]} Bxe4 {[%emt 0:00:04]} 17. Bxa6 {[%emt 0:00:02]} Bxf3 {[%emt 0:00:10]} 18. gxf3 {[%emt 0:00:01]} cxd4 {[%emt 0:00:39]} 19. Rxd4 {[%emt 0:01:52]} Nc5 {[%emt 0:00:10]} 20. Rxd8+ {[%emt 0:00:12]} Qxd8 {[%emt 0:00:08]} 21. Bb5 {[%emt 0:00:11]} Nxa4 {[%emt 0:01:06]} 22. b4 {[%emt 0:00:47]} Nc3 {[%emt 0:00:28]} 23. Qc4 {[%emt 0:05:00]} Qg5+ {[%emt 0:01:08]} 24. Kh1 {[%emt 0:00:02]} Nxb5 {[%emt 0:00:13]} 25. Rg1 {[%emt 0:00:02]} Qf5 {[%emt 0:00:24]} 26. Rg3 {[%emt 0:00:07]} Nd6 {[%emt 0:02:49]} 27. Qd4 {[%emt 0:00:44]} Qb1+ {[%emt 0:00:03]} 28. Kg2 {[%emt 0:00:02]} Nf5 {[%emt 0:00:03]} 0-1

[Event "European Online Club-ch-C 2021"]
[Site "Online"]
[Date "2021.03.27"]
[Round "2.7"]
[White "Bouget, Alexandre"]
[Black "Wachinger, Nikolas"]
[Result "0-1"]
[ECO "E21"]
[WhiteElo "2247"]
[BlackElo "2369"]
[Annotator "NA"]
[PlyCount "90"]
[EventDate "2021.03.27"]
[EventType "team-tourn"]
[EventCountry "NET"]
[SourceTitle "playchess.com"]
[Source "ChessBase"]
[SourceQuality "1"]
[TimeControl "900+5"]

1. d4 {[%emt 0:00:00]} Nf6 {[%emt 0:00:18]} 2. c4 {[%emt 0:00:26]} e6 {[%emt 0:00:06]} 3. Nc3 {[%emt 0:00:03]} Bb4 {[%emt 0:00:12]} 4. e3 {[%emt 0:00:03]} O-O {[%emt 0:00:08]} 5. Bd2 {[%emt 0:00:02]} b6 {[%emt 0:00:19]} 6. Nf3 {[%emt 0:00:03]} Bb7 {[%emt 0:00:09]} 7. Bd3 {[%emt 0:00:02]} Bxc3 {[%emt 0:00:33]} 8. Bxc3 {[%emt 0:00:00]} Ne4 {[%emt 0:00:01]} 9. Rc1 {[%emt 0:00:04]} d6 {[%emt 0:00:20]} 10. O-O {[%emt 0:00:04]} Nd7 {[%emt 0:00:03]} 11. Nd2 {[%emt 0:01:05]} Nxc3 {[%emt 0:00:23]} 12. Rxc3 {[%emt 0:00:00]} f5 {[%emt 0:00:28]} 13. e4 {[%emt 0:01:58]} f4 {[%emt 0:02:32]} 14. e5 {[%emt 0:04:31]} f3 {[%emt 0:03:00]} 15. Nxf3 {[%emt 0:01:29]} Bxf3 {[%emt 0:00:15]} 16. gxf3 {[%emt 0:00:00]} dxe5 {[%emt 0:00:03]} 17. Be4 {[%emt 0:00:21]} Qg5+ {[%emt 0:00:25]} 18. Kh1 {[%emt 0:00:05]} Rad8 {[%emt 0:00:01]} 19. Rg1 {[%emt 0:01:25]} Qh6 {[%emt 0:00:43]} 20. Rd3 {[%emt 0:00:15]} Nf6 {[%emt 0:01:35]} 21. dxe5 {[%emt 0:00:07]} Nxe4 {[%emt 0:00:10]} 22. fxe4 {[%emt 0:00:17]} Rxd3 {[%emt 0:00:08]} 23. Qxd3 {[%emt 0:00:00]} Qf4 {[%emt 0:00:13]} 24. f3 {[%emt 0:02:12]} Qxe5 {[%emt 0:00:42]} 25. Rg2 {[%emt 0:00:54]} Qf6 {[%emt 0:00:27]} 26. Rd2 {[%emt 0:00:30]} g6 {[%emt 0:00:37]} 27. Kg2 {[%emt 0:00:20]} Qg5+ {[%emt 0:00:15]} 28. Kf2 {[%emt 0:00:17]} Qh4+ {[%emt 0:00:33]} 29. Kg2 {[%emt 0:00:02]} Qg5+ {[%emt 0:00:05]} 30. Kf2 {[%emt 0:00:02]} Kg7 {[%emt 0:00:28]} 31. Qe3 {[%emt 0:00:07]} Qh4+ {[%emt 0:00:37]} 32. Kg2 {[%emt 0:00:03]} Rd8 {[%emt 0:00:02]} 33. Qc3+ {[%emt 0:00:15]} Kf7 {[%emt 0:00:03]} 34. Rxd8 {[%emt 0:00:06]} Qxd8 {[%emt 0:00:01]} 35. Qe5 {[%emt 0:00:04]} Qd2+ {[%emt 0:00:14]} 36. Kg3 {[%emt 0:00:04]} Qe1+ {[%emt 0:00:09]} 37. Kf4 {[%emt 0:00:21]} Qc1+ {[%emt 0:00:34]} 38. Kg3 {[%emt 0:00:02]} Qg1+ {[%emt 0:00:06]} 39. Kh3 {[%emt 0:00:20]} Qf1+ {[%emt 0:00:03]} 40. Kg3 {[%emt 0:00:03]} Qxc4 {[%emt 0:00:03]} 41. Qh8 {[%emt 0:00:06]} Qc5 {[%emt 0:00:14]} 42. Qxh7+ {[%emt 0:00:03]} Kf6 {[%emt 0:00:05]} 43. Qh8+ {[%emt 0:00:02]} Ke7 {[%emt 0:00:18]} 44. Qg7+ {[%emt 0:00:03]} Kd6 {[%emt 0:00:02]} 45. Qxg6 {[%emt 0:00:05]} Qg1+ {[%emt 0:00:02]} 0-1